[Event "*** Titled Tuesday Blitz"]
[Site "Chess.com"]
[Date "2020.11.10"]
[Round "7"]
[White "FMalexhdez"]
[Black "catzapto"]
[Result "0-1"]
[WhiteElo "2258"]
[BlackElo "2150"]
[TimeControl "180+1"]
[EndTime "11:23:10 PST"]
[Termination "catzapto won on time"]

1. e4 {[%clk 0:03:00.9]} 1... c5 {[%clk 0:02:59.9]} 2. Nf3 {[%clk 0:03:00.3]}
2... e6 {[%clk 0:03:00.8]} 3. d4 {[%clk 0:03:00.5]} 3... cxd4 {[%clk 0:03:01.7]}
4. Nxd4 {[%clk 0:03:00.9]} 4... Nf6 {[%clk 0:03:02.6]} 5. Nc3 {[%clk 0:03:01.3]}
5... Bb4 {[%clk 0:03:03.3]} 6. Bd3 {[%clk 0:02:44.6]} 6... Nc6 {[%clk 0:03:03]}
7. Nxc6 {[%clk 0:02:43.3]} 7... bxc6 {[%clk 0:03:03.9]} 8. e5 {[%clk 0:02:39]}
8... Nd5 {[%clk 0:03:03.2]} 9. Bd2 {[%clk 0:02:38.9]} 9... Nxc3 {[%clk
0:03:03.4]} 10. bxc3 {[%clk 0:02:38.6]} 10... Be7 {[%clk 0:03:03.6]} 11. O-O
{[%clk 0:02:38.1]} 11... O-O {[%clk 0:02:59.9]} 12. Qh5 {[%clk 0:02:36.4]} 12...
g6 {[%clk 0:03:00.2]} 13. Qh6 {[%clk 0:02:31.4]} 13... f5 {[%clk 0:02:57.9]} 14.
exf6 {[%clk 0:02:26.1]} 14... Bxf6 {[%clk 0:02:57.8]} 15. f4 {[%clk 0:02:22.8]}
15... Bg7 {[%clk 0:02:52.7]} 16. Qh3 {[%clk 0:02:20.5]} 16... Qf6 {[%clk
0:02:41.6]} 17. Rab1 {[%clk 0:02:02.7]} 17... d6 {[%clk 0:02:33.6]} 18. Qf3
{[%clk 0:01:59.6]} 18... d5 {[%clk 0:02:27.2]} 19. Rfe1 {[%clk 0:01:54.6]} 19...
e5 {[%clk 0:02:22.1]} 20. fxe5 {[%clk 0:01:42]} 20... Qxf3 {[%clk 0:02:22]} 21.
gxf3 {[%clk 0:01:42.6]} 21... Rxf3 {[%clk 0:02:22]} 22. e6 {[%clk 0:01:40.5]}
22... Kf8 {[%clk 0:02:12.1]} 23. Re2 {[%clk 0:01:13]} 23... Rf6 {[%clk
0:01:46.4]} 24. e7+ {[%clk 0:00:57.3]} 24... Ke8 {[%clk 0:01:43.1]} 25. Be3
{[%clk 0:00:57.3]} 25... Rf7 {[%clk 0:01:39.5]} 26. Bc5 {[%clk 0:00:52.3]} 26...
Bf6 {[%clk 0:01:31.4]} 27. c4 {[%clk 0:00:47.2]} 27... Bg4 {[%clk 0:01:14.8]}
28. Rg2 {[%clk 0:00:38.9]} 28... Bh3 {[%clk 0:00:59.8]} 29. Rg3 {[%clk
0:00:37.2]} 29... Bd7 {[%clk 0:00:54.4]} 30. cxd5 {[%clk 0:00:36.5]} 30... Bxe7
{[%clk 0:00:46.4]} 31. Re3 {[%clk 0:00:31.7]} 31... Kd8 {[%clk 0:00:46.4]} 32.
d6 {[%clk 0:00:26.8]} 32... Bg5 {[%clk 0:00:43.5]} 33. Re5 {[%clk 0:00:23.4]}
33... Bf6 {[%clk 0:00:42.1]} 34. Rf1 {[%clk 0:00:20.7]} 34... Rb8 {[%clk
0:00:20.6]} 35. Re2 {[%clk 0:00:16.7]} 35... Bd4+ {[%clk 0:00:11.6]} 36. Bxd4
{[%clk 0:00:15.8]} 36... Rxf1+ {[%clk 0:00:12.5]} 37. Kxf1 {[%clk 0:00:14.9]}
37... Rb1+ {[%clk 0:00:13.4]} 38. Kf2 {[%clk 0:00:13.4]} 38... a5 {[%clk
0:00:12.4]} 39. Bf6+ {[%clk 0:00:13]} 39... Kc8 {[%clk 0:00:12.1]} 40. Bc4
{[%clk 0:00:11.9]} 40... a4 {[%clk 0:00:11.3]} 41. Be6 {[%clk 0:00:11.8]} 41...
Bxe6 {[%clk 0:00:11.1]} 42. Rxe6 {[%clk 0:00:11.8]} 42... Kd7 {[%clk 0:00:12]}
43. Re7+ {[%clk 0:00:09.8]} 43... Kxd6 {[%clk 0:00:12.4]} 44. Ra7 {[%clk
0:00:08.3]} 44... Rc1 {[%clk 0:00:12.3]} 45. Rxa4 {[%clk 0:00:07.2]} 45... Rxc2+
{[%clk 0:00:12.7]} 46. Kg3 {[%clk 0:00:07.3]} 46... Ke6 {[%clk 0:00:13.1]} 47.
Bd4 {[%clk 0:00:06.1]} 47... h5 {[%clk 0:00:13.4]} 48. Be3 {[%clk 0:00:05.2]}
48... Kf5 {[%clk 0:00:13.1]} 49. h4 {[%clk 0:00:04.9]} 49... c5 {[%clk 0:00:11]}
50. Ra5 {[%clk 0:00:04.6]} 50... Ke4 {[%clk 0:00:10.5]} 51. Bxc5 {[%clk
0:00:04.2]} 51... Rc3+ {[%clk 0:00:11]} 52. Kf2 {[%clk 0:00:04.1]} 52... Rc2+
{[%clk 0:00:10.5]} 53. Ke1 {[%clk 0:00:04.2]} 53... Rg2 {[%clk 0:00:10]} 54. Be7
{[%clk 0:00:03.7]} 54... Ke3 {[%clk 0:00:09.8]} 55. Ra3+ {[%clk 0:00:03.8]}
55... Kf4 {[%clk 0:00:09.4]} 56. Bg5+ {[%clk 0:00:04]} 56... Kg4 {[%clk
0:00:09.2]} 57. Kf1 {[%clk 0:00:04]} 57... Rb2 {[%clk 0:00:08.5]} 58. Ra4+
{[%clk 0:00:03.4]} 58... Kf3 {[%clk 0:00:08.2]} 59. Rf4+ {[%clk 0:00:02.2]}
59... Kg3 {[%clk 0:00:08]} 0-1

[Event "*** Titled Tuesday Blitz"]
[Site "Chess.com"]
[Date "2020.11.10"]
[Round "7"]
[White "anon102030"]
[Black "ViditYT"]
[Result "1-0"]
[WhiteElo "2758"]
[BlackElo "2867"]
[TimeControl "180+1"]
[EndTime "11:23:12 PST"]
[Termination "anon102030 won on time"]

1. e4 {[%clk 0:03:00.9]} 1... c5 {[%clk 0:02:59.7]} 2. Nc3 {[%clk 0:03:01.2]}
2... Nc6 {[%clk 0:02:57.7]} 3. g3 {[%clk 0:03:01.7]} 3... g6 {[%clk 0:02:56.9]}
4. Bg2 {[%clk 0:03:02.6]} 4... Bg7 {[%clk 0:02:57.4]} 5. d3 {[%clk 0:03:03]}
5... d6 {[%clk 0:02:56.1]} 6. Be3 {[%clk 0:03:02.8]} 6... e6 {[%clk 0:02:52.7]}
7. Nf3 {[%clk 0:03:01.9]} 7... Nd4 {[%clk 0:02:52.1]} 8. O-O {[%clk 0:03:00.2]}
8... Ne7 {[%clk 0:02:51.9]} 9. Nh4 {[%clk 0:02:58.4]} 9... O-O {[%clk
0:02:51.2]} 10. Qd2 {[%clk 0:02:58]} 10... Rb8 {[%clk 0:02:50.7]} 11. f4 {[%clk
0:02:50.5]} 11... b5 {[%clk 0:02:49.8]} 12. Nd1 {[%clk 0:02:50.2]} 12... b4
{[%clk 0:02:45.4]} 13. c3 {[%clk 0:02:50.7]} 13... Ndc6 {[%clk 0:02:39.3]} 14.
f5 {[%clk 0:02:50]} 14... bxc3 {[%clk 0:02:32.9]} 15. bxc3 {[%clk 0:02:47.2]}
15... f6 {[%clk 0:02:11.1]} 16. fxg6 {[%clk 0:02:38.9]} 16... hxg6 {[%clk
0:02:10.8]} 17. d4 {[%clk 0:02:36.6]} 17... cxd4 {[%clk 0:01:57.2]} 18. cxd4
{[%clk 0:02:37.5]} 18... g5 {[%clk 0:01:56.3]} 19. Nf3 {[%clk 0:02:34.1]} 19...
Ba6 {[%clk 0:01:48.1]} 20. Re1 {[%clk 0:02:30.8]} 20... d5 {[%clk 0:01:33.8]}
21. e5 {[%clk 0:02:08]} 21... Nf5 {[%clk 0:01:04.6]} 22. exf6 {[%clk 0:01:41.9]}
22... Bxf6 {[%clk 0:01:04.6]} 23. Bxg5 {[%clk 0:01:38]} 23... Ncxd4 {[%clk
0:00:58.9]} 24. Bxf6 {[%clk 0:01:27.5]} 24... Qxf6 {[%clk 0:00:59.8]} 25. Ne5
{[%clk 0:01:19.3]} 25... Ne2+ {[%clk 0:00:38]} 26. Rxe2 {[%clk 0:01:15.1]} 26...
Bxe2 {[%clk 0:00:37.9]} 27. Qxe2 {[%clk 0:01:06.6]} 27... Qg7 {[%clk 0:00:35.2]}
28. Rc1 {[%clk 0:00:58.4]} 28... Nd4 {[%clk 0:00:31.9]} 29. Qe3 {[%clk
0:00:55.5]} 29... Nf5 {[%clk 0:00:31.9]} 30. Qe1 {[%clk 0:00:52.3]} 30... Rfc8
{[%clk 0:00:29.8]} 31. Rxc8+ {[%clk 0:00:45.9]} 31... Rxc8 {[%clk 0:00:30.7]}
32. Nf2 {[%clk 0:00:42.5]} 32... Rc2 {[%clk 0:00:29.4]} 33. Ned3 {[%clk
0:00:30.5]} 33... Nd4 {[%clk 0:00:25]} 34. a3 {[%clk 0:00:18.3]} 34... Ne2+
{[%clk 0:00:24.2]} 35. Kh1 {[%clk 0:00:16.7]} 35... Qd4 {[%clk 0:00:23.3]} 36.
Bh3 {[%clk 0:00:10.2]} 36... e5 {[%clk 0:00:22.5]} 37. Bf1 {[%clk 0:00:09.1]}
37... Qe3 {[%clk 0:00:21]} 38. Bxe2 {[%clk 0:00:07.2]} 38... Rxe2 {[%clk
0:00:20.8]} 39. Qb1 {[%clk 0:00:05.7]} 39... Qf3+ {[%clk 0:00:18.6]} 40. Kg1
{[%clk 0:00:05.2]} 40... e4 {[%clk 0:00:17.3]} 41. Qb8+ {[%clk 0:00:04.9]} 41...
Qf8 {[%clk 0:00:13.8]} 42. Qxf8+ {[%clk 0:00:04.1]} 42... Kxf8 {[%clk
0:00:14.7]} 43. Nf4 {[%clk 0:00:04.1]} 43... Rd2 {[%clk 0:00:10.5]} 44. Kf1
{[%clk 0:00:04.5]} 44... e3 {[%clk 0:00:09.6]} 45. N2d3 {[%clk 0:00:04.9]} 45...
d4 {[%clk 0:00:08.5]} 46. h4 {[%clk 0:00:05.1]} 46... Kg7 {[%clk 0:00:07.7]} 47.
g4 {[%clk 0:00:05]} 47... Rh2 {[%clk 0:00:06.7]} 48. h5 {[%clk 0:00:03.6]} 48...
Kf6 {[%clk 0:00:05]} 49. Kg1 {[%clk 0:00:03.2]} 49... Rd2 {[%clk 0:00:03.7]} 50.
h6 {[%clk 0:00:02.3]} 50... Rd1+ {[%clk 0:00:03.8]} 51. Kg2 {[%clk 0:00:01.8]}
51... e2 {[%clk 0:00:04.2]} 52. Nxe2 {[%clk 0:00:01.1]} 52... Rxd3 {[%clk
0:00:04.2]} 53. Nf4 {[%clk 0:00:01.8]} 53... Re3 {[%clk 0:00:03.1]} 54. Kf2
{[%clk 0:00:01.6]} 1-0

[Event "*** Titled Tuesday Blitz"]
[Site "Chess.com"]
[Date "2020.11.10"]
[Round "7"]
[White "Chernov_Mikhail"]
[Black "gui_borba"]
[Result "1-0"]
[WhiteElo "2349"]
[BlackElo "2423"]
[TimeControl "180+1"]
[EndTime "11:23:22 PST"]
[Termination "Chernov_Mikhail won on time"]

1. e4 {[%clk 0:03:00.9]} 1... c6 {[%clk 0:03:00.4]} 2. d4 {[%clk 0:03:00.4]}
2... d5 {[%clk 0:03:01.3]} 3. e5 {[%clk 0:03:01]} 3... Bf5 {[%clk 0:03:01.2]} 4.
h4 {[%clk 0:03:01.6]} 4... h5 {[%clk 0:03:00.5]} 5. c4 {[%clk 0:03:01.9]} 5...
e6 {[%clk 0:03:00.4]} 6. Nc3 {[%clk 0:03:02.5]} 6... dxc4 {[%clk 0:03:00.3]} 7.
Bxc4 {[%clk 0:03:03.4]} 7... Nd7 {[%clk 0:02:59.9]} 8. Bg5 {[%clk 0:03:03.5]}
8... Be7 {[%clk 0:02:57.5]} 9. Qd2 {[%clk 0:03:03.3]} 9... Nb6 {[%clk
0:02:51.7]} 10. Bb3 {[%clk 0:03:02.9]} 10... Nd5 {[%clk 0:02:51.1]} 11. Nge2
{[%clk 0:03:02.6]} 11... Nh6 {[%clk 0:02:40.9]} 12. O-O {[%clk 0:02:58.4]} 12...
Qb6 {[%clk 0:02:39]} 13. Ng3 {[%clk 0:02:44.9]} 13... Bg6 {[%clk 0:02:27.3]} 14.
Nce4 {[%clk 0:02:34.5]} 14... Nf5 {[%clk 0:02:12.6]} 15. Nxf5 {[%clk 0:02:28.2]}
15... Bxf5 {[%clk 0:02:07.7]} 16. Bxe7 {[%clk 0:02:20.3]} 16... Nxe7 {[%clk
0:02:02.6]} 17. Nd6+ {[%clk 0:02:19.3]} 17... Kf8 {[%clk 0:02:03.2]} 18. Rad1
{[%clk 0:02:10]} 18... Bg6 {[%clk 0:02:01.2]} 19. Qf4 {[%clk 0:02:03.8]} 19...
Nf5 {[%clk 0:01:57.1]} 20. Bc2 {[%clk 0:01:48.6]} 20... Qxb2 {[%clk 0:01:07.5]}
21. Bxf5 {[%clk 0:01:42.9]} 21... Bxf5 {[%clk 0:01:08.4]} 22. Nxf5 {[%clk
0:01:38.6]} 22... exf5 {[%clk 0:01:09.3]} 23. Rb1 {[%clk 0:01:29]} 23... Qxa2
{[%clk 0:01:06.1]} 24. Rxb7 {[%clk 0:01:27.3]} 24... Qe6 {[%clk 0:01:05.4]} 25.
Rfb1 {[%clk 0:01:23]} 25... Kg8 {[%clk 0:01:04.1]} 26. Qg5 {[%clk 0:01:17.9]}
26... Qg6 {[%clk 0:00:42.1]} 27. Qe7 {[%clk 0:01:16.1]} 27... a5 {[%clk
0:00:37.4]} 28. Ra1 {[%clk 0:00:34.9]} 28... a4 {[%clk 0:00:30.5]} 29. Rb6
{[%clk 0:00:27.9]} 29... a3 {[%clk 0:00:25.1]} 30. Rxa3 {[%clk 0:00:24]} 30...
Kh7 {[%clk 0:00:21]} 31. Rg3 {[%clk 0:00:21.4]} 31... Qe6 {[%clk 0:00:17.7]} 32.
Qxe6 {[%clk 0:00:15.9]} 32... fxe6 {[%clk 0:00:18.6]} 33. Rxc6 {[%clk
0:00:16.8]} 33... Rae8 {[%clk 0:00:14.3]} 34. Rc7 {[%clk 0:00:15.6]} 34... Rhg8
{[%clk 0:00:14.7]} 35. Rg5 {[%clk 0:00:15.5]} 35... Kh6 {[%clk 0:00:14.4]} 36.
Rd7 {[%clk 0:00:16.1]} 36... Rb8 {[%clk 0:00:12.4]} 37. Rd6 {[%clk 0:00:15.3]}
37... Rbe8 {[%clk 0:00:12.3]} 38. Kh2 {[%clk 0:00:15.6]} 38... g6 {[%clk
0:00:10.5]} 39. Rg3 {[%clk 0:00:14.5]} 39... Rg7 {[%clk 0:00:10.9]} 40. Rc3
{[%clk 0:00:14.8]} 40... g5 {[%clk 0:00:10.7]} 41. Rcc6 {[%clk 0:00:14.5]} 41...
Rge7 {[%clk 0:00:10.1]} 42. d5 {[%clk 0:00:10.9]} 42... gxh4 {[%clk 0:00:07.9]}
43. Rxe6+ {[%clk 0:00:09.4]} 43... Kg5 {[%clk 0:00:06.7]} 44. g3 {[%clk
0:00:05.1]} 44... hxg3+ {[%clk 0:00:06.1]} 45. Kxg3 {[%clk 0:00:06]} 45... Rxe6
{[%clk 0:00:06.1]} 46. Rxe6 {[%clk 0:00:04.4]} 46... f4+ {[%clk 0:00:05.6]} 47.
Kf3 {[%clk 0:00:04.2]} 47... Ra8 {[%clk 0:00:05.6]} 48. Re7 {[%clk 0:00:03]}
48... Ra3+ {[%clk 0:00:05.6]} 49. Ke4 {[%clk 0:00:03.3]} 49... Ra4+ {[%clk
0:00:05.7]} 50. Kf3 {[%clk 0:00:03.3]} 50... Ra3+ {[%clk 0:00:06]} 51. Kg2
{[%clk 0:00:04.2]} 51... h4 {[%clk 0:00:04.3]} 52. d6 {[%clk 0:00:04.6]} 52...
h3+ {[%clk 0:00:04.7]} 53. Kh2 {[%clk 0:00:05.1]} 53... Kg4 {[%clk 0:00:03.3]}
54. Rg7+ {[%clk 0:00:05.2]} 54... Kf5 {[%clk 0:00:03.4]} 55. d7 {[%clk
0:00:06.1]} 55... Rd3 {[%clk 0:00:03.3]} 56. Re7 {[%clk 0:00:04.8]} 56... f3
{[%clk 0:00:01.9]} 57. e6 {[%clk 0:00:04.9]} 57... Kf6 {[%clk 0:00:02.3]} 58.
Re8 {[%clk 0:00:05.1]} 1-0

[Event "*** Titled Tuesday Blitz"]
[Site "Chess.com"]
[Date "2020.11.10"]
[Round "7"]
[White "BikingBrian"]
[Black "anon481216"]
[Result "0-1"]
[WhiteElo "2280"]
[BlackElo "2406"]
[TimeControl "180+1"]
[EndTime "11:23:24 PST"]
[Termination "anon481216 won by resignation"]

1. d4 {[%clk 0:03:00.9]} 1... Nf6 {[%clk 0:02:59]} 2. Bg5 {[%clk 0:03:00.8]}
2... Ne4 {[%clk 0:02:58.7]} 3. Bf4 {[%clk 0:03:00.6]} 3... c5 {[%clk 0:02:59]}
4. f3 {[%clk 0:03:00.8]} 4... Qa5+ {[%clk 0:02:59]} 5. c3 {[%clk 0:03:00.9]}
5... Nf6 {[%clk 0:02:59.1]} 6. d5 {[%clk 0:03:00.4]} 6... e6 {[%clk 0:02:58.4]}
7. e4 {[%clk 0:03:00.7]} 7... exd5 {[%clk 0:02:58.7]} 8. exd5 {[%clk 0:03:01.6]}
8... d6 {[%clk 0:02:59]} 9. Qd2 {[%clk 0:03:00.4]} 9... Be7 {[%clk 0:02:58.7]}
10. c4 {[%clk 0:03:00.7]} 10... Qxd2+ {[%clk 0:02:57.3]} 11. Kxd2 {[%clk
0:03:01.6]} 11... Nh5 {[%clk 0:02:57.3]} 12. Be3 {[%clk 0:02:57.3]} 12... f5
{[%clk 0:02:57]} 13. Ne2 {[%clk 0:02:44.7]} 13... O-O {[%clk 0:02:54.1]} 14. Ng3
{[%clk 0:02:32]} 14... Nf6 {[%clk 0:02:46.5]} 15. Bf2 {[%clk 0:02:20.9]} 15...
Na6 {[%clk 0:02:44.5]} 16. Nc3 {[%clk 0:02:19.4]} 16... Nc7 {[%clk 0:02:44.1]}
17. Bd3 {[%clk 0:02:18.7]} 17... g6 {[%clk 0:02:43.6]} 18. Rae1 {[%clk 0:02:14]}
18... Re8 {[%clk 0:02:42.9]} 19. h4 {[%clk 0:02:14.1]} 19... Bd7 {[%clk
0:02:40.9]} 20. h5 {[%clk 0:02:12.3]} 20... Bf8 {[%clk 0:02:39]} 21. hxg6 {[%clk
0:02:09.1]} 21... hxg6 {[%clk 0:02:38.9]} 22. Be3 {[%clk 0:02:03.7]} 22... Bg7
{[%clk 0:02:25.7]} 23. Bf4 {[%clk 0:01:52.9]} 23... Bf8 {[%clk 0:02:09.9]} 24.
Rxe8 {[%clk 0:01:51.9]} 24... Rxe8 {[%clk 0:02:07.7]} 25. Re1 {[%clk 0:01:50.7]}
25... Rb8 {[%clk 0:02:05.8]} 26. a4 {[%clk 0:01:33.3]} 26... a6 {[%clk
0:02:02.7]} 27. Kc2 {[%clk 0:01:31.9]} 27... Kf7 {[%clk 0:01:58.8]} 28. a5
{[%clk 0:01:24.8]} 28... b5 {[%clk 0:01:49.9]} 29. axb6 {[%clk 0:01:24.5]} 29...
Rxb6 {[%clk 0:01:50.1]} 30. Ra1 {[%clk 0:01:23.7]} 30... Bg7 {[%clk 0:01:39]}
31. Nge2 {[%clk 0:01:22.6]} 31... Nh5 {[%clk 0:01:32.9]} 32. Bh2 {[%clk
0:01:20.3]} 32... Ne8 {[%clk 0:01:26.4]} 33. Na4 {[%clk 0:01:19.6]} 33... Rb4
{[%clk 0:01:19.1]} 34. Nec3 {[%clk 0:01:04.9]} 34... f4 {[%clk 0:01:05.8]} 35.
b3 {[%clk 0:00:51.7]} 35... Nef6 {[%clk 0:00:57.4]} 36. Re1 {[%clk 0:00:48.2]}
36... Rb8 {[%clk 0:00:52.8]} 37. Rg1 {[%clk 0:00:42]} 37... Be8 {[%clk
0:00:24.9]} 38. g4 {[%clk 0:00:40.7]} 38... fxg3 {[%clk 0:00:24.7]} 39. Bxg3
{[%clk 0:00:40.9]} 39... Ke7 {[%clk 0:00:12.7]} 40. Bh4 {[%clk 0:00:36.2]} 40...
Nf4 {[%clk 0:00:10.7]} 41. Bf1 {[%clk 0:00:23.4]} 41... Bd7 {[%clk 0:00:09.9]}
42. Ne4 {[%clk 0:00:23.1]} 42... Bf5 {[%clk 0:00:09.4]} 43. Bg5 {[%clk
0:00:17.2]} 43... Nh5 {[%clk 0:00:08]} 44. Bd3 {[%clk 0:00:15.2]} 44... Kd7
{[%clk 0:00:06.7]} 45. Bd2 {[%clk 0:00:12.3]} 45... Re8 {[%clk 0:00:03.8]} 46.
Nac3 {[%clk 0:00:10.6]} 46... Nxe4 {[%clk 0:00:03.1]} 47. Nxe4 {[%clk 0:00:10]}
47... Be5 {[%clk 0:00:01.6]} 48. Ra1 {[%clk 0:00:08.3]} 48... Ra8 {[%clk
0:00:01.6]} 49. Rg1 {[%clk 0:00:07.1]} 49... Nf4 {[%clk 0:00:02.5]} 50. Bxf4
{[%clk 0:00:04]} 50... Bxf4 {[%clk 0:00:03]} 51. Rh1 {[%clk 0:00:04.4]} 51...
Be5 {[%clk 0:00:03.5]} 52. Rh7+ {[%clk 0:00:04.2]} 52... Ke8 {[%clk 0:00:03.8]}
53. Ng5 {[%clk 0:00:04]} 53... Kf8 {[%clk 0:00:03.8]} 54. Bxf5 {[%clk
0:00:03.8]} 54... gxf5 {[%clk 0:00:04.2]} 55. Rh8+ {[%clk 0:00:03.1]} 55... Bxh8
{[%clk 0:00:03.4]} 56. Ne6+ {[%clk 0:00:02.3]} 56... Ke7 {[%clk 0:00:03.6]} 57.
Nc7 {[%clk 0:00:03.2]} 57... Ra7 {[%clk 0:00:03.4]} 58. Ne6 {[%clk 0:00:03.1]}
58... Be5 {[%clk 0:00:04]} 59. Ng5 {[%clk 0:00:03.3]} 59... a5 {[%clk
0:00:04.5]} 60. Ne6 {[%clk 0:00:03.7]} 60... a4 {[%clk 0:00:05]} 61. bxa4 {[%clk
0:00:04.6]} 61... Rxa4 {[%clk 0:00:05.3]} 62. Nc7 {[%clk 0:00:04.7]} 62... Rxc4+
{[%clk 0:00:05.2]} 63. Kd3 {[%clk 0:00:04.8]} 63... Rf4 {[%clk 0:00:05.4]} 64.
Ke3 {[%clk 0:00:05.1]} 64... Rd4 {[%clk 0:00:05.7]} 65. Nb5 {[%clk 0:00:05.3]}
65... Rb4 {[%clk 0:00:05.6]} 66. f4 {[%clk 0:00:06.1]} 66... Rxb5 {[%clk
0:00:05.9]} 67. fxe5 {[%clk 0:00:06.7]} 67... dxe5 {[%clk 0:00:06.5]} 68. Kf3
{[%clk 0:00:06.7]} 68... Kd6 {[%clk 0:00:07]} 69. Ke3 {[%clk 0:00:07.2]} 69...
Kxd5 {[%clk 0:00:07.6]} 0-1

[Event "*** Titled Tuesday Blitz"]
[Site "Chess.com"]
[Date "2020.11.10"]
[Round "7"]
[White "redbaron8888"]
[Black "XDPS"]
[Result "0-1"]
[WhiteElo "2540"]
[BlackElo "2788"]
[TimeControl "180+1"]
[EndTime "11:23:27 PST"]
[Termination "XDPS won by resignation"]

1. e4 {[%clk 0:03:00.9]} 1... c5 {[%clk 0:02:58.8]} 2. Nf3 {[%clk 0:03:00.7]}
2... d6 {[%clk 0:02:59.3]} 3. c3 {[%clk 0:03:00.2]} 3... Nf6 {[%clk 0:02:59.2]}
4. h3 {[%clk 0:03:00]} 4... Nbd7 {[%clk 0:02:59.8]} 5. Bd3 {[%clk 0:03:00.1]}
5... b6 {[%clk 0:02:59.6]} 6. O-O {[%clk 0:03:00.1]} 6... Bb7 {[%clk 0:03:00.1]}
7. Re1 {[%clk 0:03:00.2]} 7... Qc7 {[%clk 0:03:00]} 8. Bc2 {[%clk 0:02:59.1]}
8... Rc8 {[%clk 0:03:00.6]} 9. a4 {[%clk 0:02:56.3]} 9... a6 {[%clk 0:03:00.3]}
10. Na3 {[%clk 0:02:55]} 10... e6 {[%clk 0:03:00.3]} 11. d4 {[%clk 0:02:53.8]}
11... cxd4 {[%clk 0:03:00.5]} 12. cxd4 {[%clk 0:02:44.8]} 12... d5 {[%clk
0:02:58]} 13. exd5 {[%clk 0:02:25.4]} 13... Bxd5 {[%clk 0:02:55]} 14. Bb3 {[%clk
0:02:21.3]} 14... Be7 {[%clk 0:02:50.7]} 15. Bg5 {[%clk 0:02:16.1]} 15... Qb7
{[%clk 0:02:45.2]} 16. Bxd5 {[%clk 0:02:12.1]} 16... Qxd5 {[%clk 0:02:43.8]} 17.
Ne5 {[%clk 0:02:12.2]} 17... O-O {[%clk 0:02:38.5]} 18. Nxd7 {[%clk 0:02:10.5]}
18... Qxd7 {[%clk 0:02:38.3]} 19. Qb3 {[%clk 0:02:08.3]} 19... Bxa3 {[%clk
0:02:22.3]} 20. Bxf6 {[%clk 0:01:29.5]} 20... gxf6 {[%clk 0:01:41.9]} 21. Rxa3
{[%clk 0:01:20.7]} 21... Qxd4 {[%clk 0:01:40.8]} 22. Qg3+ {[%clk 0:01:20.5]}
22... Kh8 {[%clk 0:01:40.3]} 23. Rd3 {[%clk 0:01:04.9]} 23... Qxb2 {[%clk
0:01:38.5]} 24. Re4 {[%clk 0:00:58.1]} 24... Rg8 {[%clk 0:01:30.2]} 25. Qh4
{[%clk 0:00:57.2]} 25... f5 {[%clk 0:01:21.9]} 26. Red4 {[%clk 0:00:55.1]} 26...
Qc1+ {[%clk 0:01:07]} 27. Kh2 {[%clk 0:00:41.6]} 27... Qg5 {[%clk 0:01:04.1]}
28. Qxg5 {[%clk 0:00:39.8]} 28... Rxg5 {[%clk 0:01:04.2]} 29. Rb4 {[%clk
0:00:40.3]} 29... Rb8 {[%clk 0:00:54.5]} 30. Rd6 {[%clk 0:00:37.7]} 30... Rgg8
{[%clk 0:00:38.7]} 31. Rbxb6 {[%clk 0:00:35.6]} 31... Rxb6 {[%clk 0:00:39.6]}
32. Rxb6 {[%clk 0:00:36.1]} 32... Ra8 {[%clk 0:00:40.5]} 33. Kg3 {[%clk
0:00:34]} 33... Kg7 {[%clk 0:00:40.2]} 34. Kf4 {[%clk 0:00:29.4]} 34... Kf6
{[%clk 0:00:40.5]} 35. g4 {[%clk 0:00:29]} 35... fxg4 {[%clk 0:00:40.9]} 36.
hxg4 {[%clk 0:00:29.9]} 36... h6 {[%clk 0:00:41.5]} 37. f3 {[%clk 0:00:29.6]}
37... a5 {[%clk 0:00:39.8]} 38. Rb5 {[%clk 0:00:28.7]} 38... Ra6 {[%clk
0:00:39.3]} 39. Ke4 {[%clk 0:00:28]} 39... Kg6 {[%clk 0:00:38.4]} 40. f4 {[%clk
0:00:28]} 40... Kf6 {[%clk 0:00:36.9]} 41. Rc5 {[%clk 0:00:26.5]} 41... Ra8
{[%clk 0:00:30.2]} 42. Rb5 {[%clk 0:00:26.6]} 42... Kg6 {[%clk 0:00:29.2]} 43.
Rc5 {[%clk 0:00:26]} 43... Kf6 {[%clk 0:00:20.2]} 44. Rb5 {[%clk 0:00:25.9]}
44... Rc8 {[%clk 0:00:18.7]} 45. Rxa5 {[%clk 0:00:25.5]} 45... Rc1 {[%clk
0:00:18.7]} 46. Ra8 {[%clk 0:00:22.5]} 46... Rg1 {[%clk 0:00:18]} 47. Kf3 {[%clk
0:00:22]} 47... Rf1+ {[%clk 0:00:17.9]} 48. Kg3 {[%clk 0:00:21.9]} 48... Rg1+
{[%clk 0:00:17.9]} 49. Kf3 {[%clk 0:00:22.3]} 49... Rf1+ {[%clk 0:00:17.3]} 50.
Kg3 {[%clk 0:00:20.2]} 50... Ra1 {[%clk 0:00:17.7]} 51. a5 {[%clk 0:00:19.5]}
51... Ra3+ {[%clk 0:00:18.2]} 52. Kf2 {[%clk 0:00:18.5]} 52... Ra4 {[%clk
0:00:17]} 53. Kf3 {[%clk 0:00:17.7]} 53... Ra3+ {[%clk 0:00:17.5]} 54. Ke2
{[%clk 0:00:17.7]} 54... Rg3 {[%clk 0:00:16.9]} 55. a6 {[%clk 0:00:16.3]} 55...
Rxg4 {[%clk 0:00:17.2]} 56. a7 {[%clk 0:00:14.5]} 56... Rg2+ {[%clk 0:00:17.4]}
57. Kf3 {[%clk 0:00:13.6]} 57... Ra2 {[%clk 0:00:18.3]} 58. Kg4 {[%clk 0:00:12]}
58... Ra5 {[%clk 0:00:17.3]} 59. Kf3 {[%clk 0:00:11.3]} 59... Kf5 {[%clk
0:00:16.2]} 60. Kg3 {[%clk 0:00:09.6]} 60... Ra3+ {[%clk 0:00:16]} 61. Kf2
{[%clk 0:00:06.4]} 61... Kxf4 {[%clk 0:00:14.1]} 62. Ke2 {[%clk 0:00:06.7]}
62... e5 {[%clk 0:00:11.9]} 63. Kd2 {[%clk 0:00:06.7]} 63... f5 {[%clk 0:00:12]}
64. Kc2 {[%clk 0:00:06.5]} 64... e4 {[%clk 0:00:12.3]} 65. Kb2 {[%clk
0:00:06.7]} 65... Ra5 {[%clk 0:00:12.4]} 66. Kb3 {[%clk 0:00:06.1]} 66... Ke3
{[%clk 0:00:10.9]} 67. Kb4 {[%clk 0:00:06.5]} 67... Ra1 {[%clk 0:00:10.7]} 68.
Kb3 {[%clk 0:00:06.6]} 68... f4 {[%clk 0:00:11]} 69. Kb2 {[%clk 0:00:07.5]}
69... Ra6 {[%clk 0:00:11]} 70. Kb3 {[%clk 0:00:07.7]} 70... f3 {[%clk
0:00:11.4]} 71. Kb4 {[%clk 0:00:07.9]} 71... f2 {[%clk 0:00:11.6]} 72. Kb5
{[%clk 0:00:08.8]} 72... Ra1 {[%clk 0:00:11.5]} 0-1